[Event "FIDE Women World Blitz 2021"]
[Site "Warsaw"]
[Date "2021.12.29"]
[Round "1.5"]
[White "Atalik, Ekaterina"]
[Black "Kosteniuk, Alexandra"]
[Result "1-0"]
[ECO "A30"]
[WhiteElo "2430"]
[BlackElo "2518"]
[Annotator "ChessBase"]
[PlyCount "135"]
[EventDate "2021.12.29"]
[EventType "swiss"]
[EventCountry "POL"]
[Tiebreak "Cut1 Buchholz"]
[SourceTitle "playchess.com"]
[Source "ChessBase"]
[SourceQuality "1"]
[TimeControl "180+2"]

1. Nf3 {[%emt 0:00:01]} d5 {[%emt 0:00:01]} 2. e3 {[%emt 0:00:02]} Nf6 {
[%emt 0:00:04]} 3. c4 {[%emt 0:00:01]} e6 {[%emt 0:00:01]} 4. b3 {[%emt 0:00:
02]} b6 {[%emt 0:00:03]} 5. Bb2 {[%emt 0:00:02]} Bb7 {[%emt 0:00:01]} 6. Be2 {
[%emt 0:00:03]} Be7 {[%emt 0:00:01]} 7. O-O {[%emt 0:00:02]} c5 {[%emt 0:00:03]
} 8. d4 {[%emt 0:00:04]} cxd4 {[%emt 0:00:01]} 9. exd4 {[%emt 0:00:06]} O-O {
[%emt 0:00:02]} 10. Nbd2 {[%emt 0:00:10]} Nc6 {[%emt 0:00:01]} 11. Re1 {
[%emt 0:00:07]} Re8 {[%emt 0:00:01]} 12. Rc1 {[%emt 0:00:14]} Rc8 {[%emt 0:00:
01]} 13. a3 {[%emt 0:00:12]} Bf8 {[%emt 0:00:08]} 14. Ne5 {[%emt 0:00:07]} dxc4
{[%emt 0:00:10]} 15. Ndxc4 {[%emt 0:00:05]} Ne7 {[%emt 0:00:09]} 16. Bf3 {
[%emt 0:00:17]} Nfd5 {[%emt 0:00:03]} 17. b4 {[%emt 0:00:06]} Nf5 {[%emt 0:00:
10]} 18. Qd2 {[%emt 0:00:09]} g6 {[%emt 0:00:04]} 19. Rc2 {[%emt 0:00:41]} Bh6
{[%emt 0:00:03]} 20. Qd1 {[%emt 0:00:01]} Rc7 {[%emt 0:00:20]} 21. g3 {[%emt 0:
00:07]} Qe7 {[%emt 0:00:06]} 22. Ng4 {[%emt 0:00:09]} Bg7 {[%emt 0:00:03]} 23.
Nce5 {[%emt 0:00:03]} h5 {[%emt 0:00:07]} 24. Rxc7 {[%emt 0:00:05]} Qxc7 {
[%emt 0:00:01]} 25. Ne3 {[%emt 0:00:02]} Nfxe3 {[%emt 0:00:12]} 26. fxe3 {
[%emt 0:00:04]} Bxe5 {[%emt 0:00:04]} 27. dxe5 {[%emt 0:00:02]} Rd8 {[%emt 0:
00:01]} 28. Bd4 {[%emt 0:00:04]} Ne7 {[%emt 0:00:02]} 29. Bxb7 {[%emt 0:00:12]}
Qxb7 {[%emt 0:00:01]} 30. Qe2 {[%emt 0:00:09]} Qe4 {[%emt 0:00:03]} 31. Qg2 {
[%emt 0:00:05]} Qxg2+ {[%emt 0:00:13]} 32. Kxg2 {[%emt 0:00:01]} Rc8 {[%emt 0:
00:01]} 33. Re2 {[%emt 0:00:01]} Rc4 {[%emt 0:00:05]} 34. Kf3 {[%emt 0:00:02]}
Nd5 {[%emt 0:00:02]} 35. Rd2 {[%emt 0:00:05]} Kg7 {[%emt 0:00:11]} 36. Ke4 {
[%emt 0:00:02]} g5 {[%emt 0:00:04]} 37. Kd3 {[%emt 0:00:02]} Rc1 {[%emt 0:00:
01]} 38. e4 {[%emt 0:00:02]} Ne7 {[%emt 0:00:17]} 39. b5 {[%emt 0:00:01]} h4 {
[%emt 0:00:03]} 40. Rc2 {[%emt 0:00:09]} Rxc2 {[%emt 0:00:13]} 41. Kxc2 {
[%emt 0:00:02]} h3 {[%emt 0:00:01]} 42. a4 {[%emt 0:00:03]} Kg6 {[%emt 0:00:03]
} 43. a5 {[%emt 0:00:05]} Nc8 {[%emt 0:00:01]} 44. a6 {[%emt 0:00:03]} Kh5 {
[%emt 0:00:02]} 45. Kd3 {[%emt 0:00:01]} g4 {[%emt 0:00:21]} 46. Ke3 {[%emt 0:
00:02]} Kg5 {[%emt 0:00:01]} 47. Bc3 {[%emt 0:00:02]} Ne7 {[%emt 0:00:04]} 48.
Bb4 {[%emt 0:00:06]} Nc8 {[%emt 0:00:04]} 49. Bd6 {[%emt 0:00:00]} f6 {[%emt 0:
00:12]} 50. Bc7 {[%emt 0:00:00]} f5 {[%emt 0:00:05]} 51. Bd8+ {[%emt 0:00:01]}
Kg6 {[%emt 0:00:01]} 52. Kf4 {[%emt 0:00:02]} fxe4 {[%emt 0:00:02]} 53. Kxe4 {
[%emt 0:00:02]} Kf7 {[%emt 0:00:01]} 54. Kf4 {[%emt 0:00:01]} Ke8 {[%emt 0:00:
01]} 55. Bc7 {[%emt 0:00:01]} Kd7 {[%emt 0:00:01]} 56. Bb8 {[%emt 0:00:02]} Ne7
{[%emt 0:00:01]} 57. Bxa7 {[%emt 0:00:04]} Kc7 {[%emt 0:00:00]} 58. Kxg4 {
[%emt 0:00:02]} Nd5 {[%emt 0:00:01]} 59. Kxh3 {[%emt 0:00:02]} Nc3 {[%emt 0:00:
00]} 60. Kg4 {[%emt 0:00:03]} Nxb5 {[%emt 0:00:01]} 61. Bxb6+ {[%emt 0:00:03]}
Kxb6 {[%emt 0:00:00]} 62. h4 {[%emt 0:00:01]} Nd4 {[%emt 0:00:09]} 63. h5 {
[%emt 0:00:01]} Nc6 {[%emt 0:00:00]} 64. h6 {[%emt 0:00:03]} Nxe5+ {[%emt 0:00:
01]} 65. Kg5 {[%emt 0:00:03]} Nf7+ {[%emt 0:00:02]} 66. Kg6 {[%emt 0:00:03]}
Nh8+ {[%emt 0:00:17]} 67. Kf6 {[%emt 0:00:02]} Kxa6 {[%emt 0:00:03]} 68. Kxe6 {
[%emt 0:00:01]} 1-0

[Event "FIDE Women World Blitz 2021"]
[Site "Warsaw"]
[Date "2021.12.29"]
[Round "1.5"]
[White "Osmak, Yuliia"]
[Black "Rudzinska, Michalina"]
[Result "1-0"]
[ECO "A27"]
[WhiteElo "2198"]
[BlackElo "1832"]
[Annotator "NA"]
[PlyCount "77"]
[EventDate "2021.12.29"]
[EventType "swiss"]
[EventCountry "POL"]
[Tiebreak "Cut1 Buchholz"]
[SourceTitle "playchess.com"]
[Source "ChessBase"]
[SourceQuality "1"]
[TimeControl "180+2"]

1. c4 {[%emt 0:00:01]} e5 {[%emt 0:00:01]} 2. Nc3 {[%emt 0:00:01]} Nc6 {
[%emt 0:00:01]} 3. Nf3 {[%emt 0:00:13]} f5 {[%emt 0:00:06]} 4. d4 {[%emt 0:00:
03]} e4 {[%emt 0:00:02]} 5. Ng5 {[%emt 0:00:10]} d6 {[%emt 0:00:02]} 6. Nh3 {
[%emt 0:00:21]} Nf6 {[%emt 0:00:02]} 7. Nf4 {[%emt 0:00:02]} g6 {[%emt 0:00:20]
} 8. e3 {[%emt 0:00:12]} Bh6 {[%emt 0:00:12]} 9. g3 {[%emt 0:00:07]} O-O {
[%emt 0:00:03]} 10. Be2 {[%emt 0:00:03]} Ne7 {[%emt 0:00:07]} 11. h4 {[%emt 0:
00:11]} Bxf4 {[%emt 0:00:05]} 12. gxf4 {[%emt 0:00:02]} Be6 {[%emt 0:00:05]}
13. d5 {[%emt 0:00:08]} Bd7 {[%emt 0:00:11]} 14. h5 {[%emt 0:00:07]} Kf7 {
[%emt 0:00:07]} 15. b3 {[%emt 0:00:06]} c6 {[%emt 0:00:09]} 16. dxc6 {[%emt 0:
00:04]} Bxc6 {[%emt 0:00:04]} 17. Bb2 {[%emt 0:00:17]} Qd7 {[%emt 0:00:26]} 18.
Qd4 {[%emt 0:00:06]} Qe6 {[%emt 0:00:05]} 19. O-O-O {[%emt 0:00:10]} Rad8 {
[%emt 0:00:06]} 20. Kb1 {[%emt 0:00:12]} a6 {[%emt 0:00:18]} 21. hxg6+ {
[%emt 0:00:28]} hxg6 {[%emt 0:00:01]} 22. Ba3 {[%emt 0:00:11]} Ke8 {[%emt 0:00:
40]} 23. Bxd6 {[%emt 0:00:16]} Nc8 {[%emt 0:00:15]} 24. Qe5 {[%emt 0:00:01]}
Qxe5 {[%emt 0:00:13]} 25. Bxe5 {[%emt 0:00:02]} Ke7 {[%emt 0:00:04]} 26. Rxd8 {
[%emt 0:00:04]} Rxd8 {[%emt 0:00:02]} 27. Kc2 {[%emt 0:00:01]} Ke6 {[%emt 0:00:
01]} 28. Rh6 {[%emt 0:00:02]} Ne7 {[%emt 0:00:01]} 29. b4 {[%emt 0:00:07]} Rc8
{[%emt 0:00:02]} 30. Kb3 {[%emt 0:00:01]} Rd8 {[%emt 0:00:06]} 31. Kc2 {
[%emt 0:00:02]} Rc8 {[%emt 0:00:01]} 32. a3 {[%emt 0:00:02]} Bd7 {[%emt 0:00:
03]} 33. Kb3 {[%emt 0:00:02]} Rd8 {[%emt 0:00:04]} 34. c5 {[%emt 0:00:02]} Bc6
{[%emt 0:00:01]} 35. Bc4+ {[%emt 0:00:01]} Ned5 {[%emt 0:00:02]} 36. Rxg6 {
[%emt 0:00:02]} Rf8 {[%emt 0:00:03]} 37. Nxd5 {[%emt 0:00:05]} Bxd5 {[%emt 0:
00:02]} 38. Bxd5+ {[%emt 0:00:01]} Kxd5 {[%emt 0:00:01]} 39. Rxf6 {[%emt 0:00:
01]} 1-0

[Event "FIDE Women World Blitz 2021"]
[Site "Warsaw"]
[Date "2021.12.29"]
[Round "1.6"]
[White "Gunina, Valentina"]
[Black "Kovanova, Baira"]
[Result "1-0"]
[ECO "D37"]
[WhiteElo "2480"]
[BlackElo "2331"]
[Annotator "ChessBase"]
[PlyCount "69"]
[EventDate "2021.12.29"]
[EventType "swiss"]
[EventCountry "POL"]
[Tiebreak "Cut1 Buchholz"]
[SourceTitle "playchess.com"]
[Source "ChessBase"]
[SourceQuality "1"]
[TimeControl "180+2"]

1. d4 {[%emt 0:00:02]} d5 {[%emt 0:00:01]} 2. c4 {[%emt 0:00:01]} e6 {[%emt 0:
00:01]} 3. Nf3 {[%emt 0:00:02]} Nf6 {[%emt 0:00:04]} 4. Nc3 {[%emt 0:00:01]}
Nbd7 {[%emt 0:00:04]} 5. Bf4 {[%emt 0:00:04]} dxc4 {[%emt 0:00:11]} 6. e3 {
[%emt 0:00:13]} Bd6 {[%emt 0:00:03]} 7. Bg3 {[%emt 0:00:04]} Bb4 {[%emt 0:01:
02]} 8. Bxc4 {[%emt 0:00:05]} Ne4 {[%emt 0:00:01]} 9. Rc1 {[%emt 0:00:08]} Nxg3
{[%emt 0:00:49]} 10. hxg3 {[%emt 0:00:01]} h6 {[%emt 0:00:05]} 11. g4 {[%emt 0:
00:13]} Nb6 {[%emt 0:00:13]} 12. Bd3 {[%emt 0:00:02]} Be7 {[%emt 0:00:01]} 13.
Ne4 {[%emt 0:00:08]} c6 {[%emt 0:00:30]} 14. g5 {[%emt 0:00:02]} h5 {[%emt 0:
00:05]} 15. Ne5 {[%emt 0:00:06]} g6 {[%emt 0:00:08]} 16. Qf3 {[%emt 0:00:08]}
Rf8 {[%emt 0:00:03]} 17. g4 {[%emt 0:00:24]} hxg4 {[%emt 0:00:04]} 18. Nxg4 {
[%emt 0:00:30]} Nd5 {[%emt 0:00:02]} 19. Bc4 {[%emt 0:00:05]} Qa5+ {[%emt 0:00:
04]} 20. Kf1 {[%emt 0:00:05]} Bd7 {[%emt 0:00:01]} 21. Ngf6+ {[%emt 0:00:08]}
Nxf6 {[%emt 0:00:02]} 22. gxf6 {[%emt 0:00:02]} Bb4 {[%emt 0:00:05]} 23. a3 {
[%emt 0:00:01]} O-O-O {[%emt 0:00:02]} 24. axb4 {[%emt 0:00:02]} Qxb4 {[%emt 0:
00:02]} 25. Qe2 {[%emt 0:00:03]} e5 {[%emt 0:00:01]} 26. dxe5 {[%emt 0:00:05]}
Kb8 {[%emt 0:00:01]} 27. Nd6 {[%emt 0:00:09]} Rh8 {[%emt 0:00:01]} 28. Kg2 {
[%emt 0:00:06]} Qc5 {[%emt 0:00:02]} 29. Nxf7 {[%emt 0:00:15]} Rxh1 {[%emt 0:
00:01]} 30. Rxh1 {[%emt 0:00:02]} Rf8 {[%emt 0:00:01]} 31. e6 {[%emt 0:00:05]}
Bxe6 {[%emt 0:00:02]} 32. Bxe6 {[%emt 0:00:02]} Qb4 {[%emt 0:00:05]} 33. Qf3 {
[%emt 0:00:05]} Qxb2 {[%emt 0:00:02]} 34. Qf4+ {[%emt 0:00:05]} Ka8 {[%emt 0:
00:01]} 35. Rh8 {[%emt 0:00:02]} 1-0

[Event "FIDE Women World Blitz 2021"]
[Site "Warsaw"]
[Date "2021.12.29"]
[Round "1.6"]
[White "Parol, Pola"]
[Black "Garcia Martin, Marta"]
[Result "0-1"]
[ECO "C80"]
[WhiteElo "1823"]
[BlackElo "2194"]
[Annotator "NA"]
[PlyCount "33"]
[EventDate "2021.12.29"]
[EventType "swiss"]
[EventCountry "POL"]
[Tiebreak "Cut1 Buchholz"]
[SourceTitle "playchess.com"]
[Source "ChessBase"]
[SourceQuality "1"]
[TimeControl "180+2"]

1. e4 {[%emt 0:00:01]} e5 {[%emt 0:00:01]} 2. Nf3 {[%emt 0:00:01]} Nc6 {
[%emt 0:00:01]} 3. Bb5 {[%emt 0:00:01]} a6 {[%emt 0:00:01]} 4. Ba4 {[%emt 0:00:
01]} Nf6 {[%emt 0:00:01]} 5. O-O {[%emt 0:00:02]} Be7 {[%emt 0:00:01]} 6. c3 {
[%emt 0:00:02]} Nxe4 {[%emt 0:00:11]} 7. Re1 {[%emt 0:00:15]} Nc5 {[%emt 0:00:
37]} 8. Bxc6 {[%emt 0:00:13]} dxc6 {[%emt 0:00:02]} 9. Nxe5 {[%emt 0:00:04]}
O-O {[%emt 0:00:06]} 10. d4 {[%emt 0:00:03]} Ne6 {[%emt 0:00:03]} 11. Nd2 {
[%emt 0:00:06]} c5 {[%emt 0:00:02]} 12. dxc5 {[%emt 0:00:11]} Nxc5 {[%emt 0:00:
01]} 13. Ndf3 {[%emt 0:00:13]} Bf6 {[%emt 0:00:26]} 14. Bf4 {[%emt 0:00:13]}
Bf5 {[%emt 0:00:09]} 15. Qxd8 {[%emt 0:00:11]} Rb8 {[%emt 0:00:03]} 16. Qxf8+
Rxf8 {[%emt 0:00:02]} 17. Rad1 {[%emt 0:00:24]} 0-1

[Event "FIDE Women World Blitz 2021"]
[Site "Warsaw"]
[Date "2021.12.29"]
[Round "1.7"]
[White "Badelka, Olga"]
[Black "Smietanska, Wiktoria"]
[Result "1-0"]
[ECO "D78"]
[WhiteElo "2188"]
[BlackElo "1765"]
[Annotator "NA"]
[PlyCount "87"]
[EventDate "2021.12.29"]
[EventType "swiss"]
[EventCountry "POL"]
[Tiebreak "Cut1 Buchholz"]
[SourceTitle "playchess.com"]
[Source "ChessBase"]
[SourceQuality "1"]
[TimeControl "180+2"]

1. Nf3 {[%emt 0:00:01]} Nf6 {[%emt 0:00:00]} 2. g3 {[%emt 0:00:01]} g6 {
[%emt 0:00:01]} 3. Bg2 {[%emt 0:00:01]} Bg7 {[%emt 0:00:01]} 4. c4 {[%emt 0:00:
01]} O-O {[%emt 0:00:02]} 5. d4 {[%emt 0:00:01]} c6 {[%emt 0:00:02]} 6. b3 {
[%emt 0:00:04]} d5 {[%emt 0:00:02]} 7. Bb2 {[%emt 0:00:01]} Bf5 {[%emt 0:00:04]
} 8. O-O {[%emt 0:00:02]} Nbd7 {[%emt 0:00:06]} 9. Nc3 {[%emt 0:00:01]} Rc8 {
[%emt 0:00:12]} 10. h3 {[%emt 0:00:03]} h5 {[%emt 0:00:03]} 11. Rc1 {[%emt 0:
00:03]} a6 {[%emt 0:00:10]} 12. Ne5 {[%emt 0:00:19]} Be6 {[%emt 0:00:26]} 13.
cxd5 {[%emt 0:00:10]} cxd5 {[%emt 0:00:03]} 14. Nd3 {[%emt 0:00:01]} b5 {
[%emt 0:00:10]} 15. Nf4 {[%emt 0:00:07]} Nb6 {[%emt 0:00:14]} 16. Nxe6 {
[%emt 0:00:01]} fxe6 {[%emt 0:00:02]} 17. Qd3 {[%emt 0:00:01]} Kh7 {[%emt 0:00:
06]} 18. e4 {[%emt 0:00:03]} b4 {[%emt 0:00:17]} 19. Ne2 {[%emt 0:00:01]} dxe4
{[%emt 0:00:11]} 20. Bxe4 {[%emt 0:00:02]} Nxe4 {[%emt 0:00:02]} 21. Qxe4 {
[%emt 0:00:01]} Qd5 {[%emt 0:00:04]} 22. Qd3 {[%emt 0:00:07]} a5 {[%emt 0:00:
12]} 23. Nf4 {[%emt 0:00:06]} Qf5 {[%emt 0:00:02]} 24. Qxf5 {[%emt 0:00:37]}
exf5 {[%emt 0:00:04]} 25. Ne6 {[%emt 0:00:07]} Rfe8 {[%emt 0:00:13]} 26. Nxg7 {
[%emt 0:00:26]} Kxg7 {[%emt 0:00:03]} 27. Rc5 {[%emt 0:00:01]} Red8 {[%emt 0:
00:32]} 28. Rfc1 {[%emt 0:00:46]} Kf7 {[%emt 0:00:04]} 29. Rxa5 {[%emt 0:00:10]
} Rxc1+ 30. Bxc1 {[%emt 0:00:00]} Rxd4 {[%emt 0:00:06]} 31. Kg2 {[%emt 0:00:07]
} Nd5 {[%emt 0:00:08]} 32. Ra7 {[%emt 0:00:11]} Nc3 {[%emt 0:00:07]} 33. Bg5 {
[%emt 0:00:02]} Re4 {[%emt 0:00:03]} 34. Bd2 {[%emt 0:00:06]} Re2 {[%emt 0:00:
05]} 35. Bxc3 {[%emt 0:00:07]} bxc3 {[%emt 0:00:01]} 36. a4 {[%emt 0:00:01]} c2
{[%emt 0:00:02]} 37. Rc7 {[%emt 0:00:01]} Rd2 {[%emt 0:00:04]} 38. a5 {[%emt 0:
00:03]} Ke6 {[%emt 0:00:01]} 39. b4 {[%emt 0:00:04]} Kd6 {[%emt 0:00:01]} 40.
Rc8 {[%emt 0:00:02]} Kd7 {[%emt 0:00:05]} 41. Rc4 {[%emt 0:00:01]} Kd6 {
[%emt 0:00:08]} 42. a6 {[%emt 0:00:00]} Rd5 {[%emt 0:00:04]} 43. a7 {[%emt 0:
00:08]} Rb5 {[%emt 0:00:02]} 44. a8=Q {[%emt 0:00:03]} 1-0

[Event "FIDE Women World Blitz 2021"]
[Site "Warsaw"]
[Date "2021.12.29"]
[Round "1.7"]
[White "Rakhmangulova, Anastasiya"]
[Black "Goryachkina, Aleksandra"]
[Result "0-1"]
[ECO "B12"]
[WhiteElo "2174"]
[BlackElo "2604"]
[Annotator "ChessBase"]
[PlyCount "77"]
[EventDate "2021.12.29"]
[EventType "swiss"]
[EventCountry "POL"]
[Tiebreak "Cut1 Buchholz"]
[SourceTitle "playchess.com"]
[Source "ChessBase"]
[SourceQuality "1"]
[TimeControl "180+2"]

1. e4 {[%emt 0:00:01]} c6 {[%emt 0:00:01]} 2. d4 {[%emt 0:00:02]} d5 {[%emt 0:
00:02]} 3. e5 {[%emt 0:00:01]} c5 {[%emt 0:00:02]} 4. dxc5 {[%emt 0:00:07]} e6
{[%emt 0:00:01]} 5. a3 {[%emt 0:00:16]} Bxc5 {[%emt 0:00:09]} 6. b4 {[%emt 0:
00:13]} Bb6 {[%emt 0:00:05]} 7. Nf3 {[%emt 0:00:18]} Ne7 {[%emt 0:00:12]} 8.
Bd3 {[%emt 0:00:08]} a5 {[%emt 0:00:02]} 9. Bb2 {[%emt 0:00:14]} axb4 {[%emt 0:
00:15]} 10. axb4 {[%emt 0:00:01]} Rxa1 {[%emt 0:00:01]} 11. Bxa1 {[%emt 0:00:
01]} Nd7 {[%emt 0:00:04]} 12. O-O {[%emt 0:00:10]} Ng6 {[%emt 0:00:03]} 13. g3
{[%emt 0:00:26]} O-O {[%emt 0:00:08]} 14. Nbd2 {[%emt 0:00:02]} Bc7 {[%emt 0:
00:10]} 15. Re1 {[%emt 0:00:04]} b6 {[%emt 0:00:23]} 16. h4 {[%emt 0:00:07]} h6
{[%emt 0:00:07]} 17. h5 {[%emt 0:00:09]} Ne7 {[%emt 0:00:01]} 18. Nb3 {[%emt 0:
00:01]} Bb7 {[%emt 0:00:19]} 19. b5 {[%emt 0:00:12]} Nc5 {[%emt 0:00:11]} 20.
Bd4 {[%emt 0:00:04]} Nxb3 {[%emt 0:00:26]} 21. cxb3 {[%emt 0:00:02]} Nf5 {
[%emt 0:00:16]} 22. Bxf5 {[%emt 0:00:15]} exf5 {[%emt 0:00:01]} 23. Qd3 {
[%emt 0:00:02]} Qd7 {[%emt 0:00:04]} 24. Nh4 {[%emt 0:00:06]} Bc8 {[%emt 0:00:
14]} 25. Rc1 {[%emt 0:00:08]} Bd8 {[%emt 0:00:06]} 26. Nf3 {[%emt 0:00:09]} f4
{[%emt 0:00:01]} 27. Rc6 {[%emt 0:00:08]} fxg3 {[%emt 0:00:05]} 28. fxg3 {
[%emt 0:00:01]} Qh3 {[%emt 0:00:07]} 29. Nh2 {[%emt 0:00:16]} Bf5 {[%emt 0:00:
07]} 30. Qf3 {[%emt 0:00:10]} Be4 {[%emt 0:00:03]} 31. Qf2 {[%emt 0:00:01]}
Qxh5 {[%emt 0:00:03]} 32. g4 {[%emt 0:00:05]} Qg5 {[%emt 0:00:03]} 33. Qg3 {
[%emt 0:00:03]} Qd2 {[%emt 0:00:05]} 34. Be3 {[%emt 0:00:03]} Qd1+ {[%emt 0:00:
01]} 35. Nf1 {[%emt 0:00:01]} Qxb3 {[%emt 0:00:06]} 36. Qf2 {[%emt 0:00:04]} d4
{[%emt 0:00:02]} 37. Bxd4 {[%emt 0:00:02]} Bxc6 {[%emt 0:00:01]} 38. bxc6 {
[%emt 0:00:01]} Qc4 {[%emt 0:00:01]} 39. g5 {[%emt 0:00:04]} 0-1

[Event "FIDE Women World Blitz 2021"]
[Site "Warsaw"]
[Date "2021.12.29"]
[Round "1.8"]
[White "Michna, Marta"]
[Black "Paramzina, Anastasya"]
[Result "1-0"]
[ECO "A48"]
[WhiteElo "2312"]
[BlackElo "2260"]
[Annotator "NA"]
[PlyCount "89"]
[EventDate "2021.12.29"]
[EventType "swiss"]
[EventCountry "POL"]
[Tiebreak "Cut1 Buchholz"]
[SourceTitle "playchess.com"]
[Source "ChessBase"]
[SourceQuality "1"]
[TimeControl "180+2"]

1. Nf3 {[%emt 0:00:01]} Nf6 {[%emt 0:00:00]} 2. d4 {[%emt 0:00:03]} g6 {
[%emt 0:00:02]} 3. c3 {[%emt 0:00:01]} Bg7 {[%emt 0:00:01]} 4. Bf4 {[%emt 0:00:
01]} d6 {[%emt 0:00:06]} 5. h3 {[%emt 0:00:03]} O-O {[%emt 0:00:02]} 6. Nbd2 {
[%emt 0:00:02]} c5 {[%emt 0:00:01]} 7. dxc5 {[%emt 0:00:07]} dxc5 {[%emt 0:00:
01]} 8. e4 {[%emt 0:00:01]} Nc6 {[%emt 0:00:04]} 9. Qc2 {[%emt 0:00:09]} Nd7 {
[%emt 0:00:32]} 10. Rd1 {[%emt 0:00:16]} Qe8 {[%emt 0:00:15]} 11. a4 {[%emt 0:
00:13]} Nde5 {[%emt 0:00:01]} 12. Be3 {[%emt 0:00:54]} b6 {[%emt 0:00:04]} 13.
Bb5 {[%emt 0:00:12]} a6 {[%emt 0:00:01]} 14. Be2 {[%emt 0:00:01]} Bb7 {[%emt 0:
00:02]} 15. Qb3 {[%emt 0:00:15]} Nxf3+ {[%emt 0:01:19]} 16. Nxf3 {[%emt 0:00:
15]} Ne5 {[%emt 0:00:02]} 17. Nxe5 {[%emt 0:00:23]} Bxe5 {[%emt 0:00:01]} 18.
Qxb6 {[%emt 0:00:10]} Bxe4 {[%emt 0:00:01]} 19. O-O {[%emt 0:00:04]} Bd6 {
[%emt 0:00:07]} 20. Bxc5 {[%emt 0:00:20]} Rb8 {[%emt 0:00:01]} 21. Qa5 {
[%emt 0:00:01]} Rxb2 {[%emt 0:00:08]} 22. Bxa6 {[%emt 0:00:08]} Qa8 {[%emt 0:
00:05]} 23. f3 {[%emt 0:00:05]} Bxc5+ {[%emt 0:00:20]} 24. Qxc5 {[%emt 0:00:01]
} Bc2 {[%emt 0:00:02]} 25. Bb5 {[%emt 0:00:02]} Bxd1 {[%emt 0:00:02]} 26. Rxd1
{[%emt 0:00:00]} Qb8 {[%emt 0:00:08]} 27. Qe3 {[%emt 0:00:03]} Qg3 {[%emt 0:00:
02]} 28. Bf1 {[%emt 0:00:02]} Rfb8 {[%emt 0:00:04]} 29. Qe1 {[%emt 0:00:01]}
Qf4 {[%emt 0:00:02]} 30. Qxe7 {[%emt 0:00:01]} Rc2 {[%emt 0:00:04]} 31. Rd8+ {
[%emt 0:00:00]} Rxd8 {[%emt 0:00:02]} 32. Qxd8+ {[%emt 0:00:01]} Kg7 {[%emt 0:
00:01]} 33. Qd4+ {[%emt 0:00:01]} Qxd4+ {[%emt 0:00:02]} 34. cxd4 {[%emt 0:00:
01]} Rd2 {[%emt 0:00:01]} 35. a5 {[%emt 0:00:01]} Rxd4 {[%emt 0:00:01]} 36. a6
{[%emt 0:00:00]} Rd2 {[%emt 0:00:03]} 37. Bb5 {[%emt 0:00:01]} Ra2 {[%emt 0:00:
03]} 38. Kh2 {[%emt 0:00:01]} Kf6 {[%emt 0:00:01]} 39. Kg3 {[%emt 0:00:01]} Ke5
{[%emt 0:00:01]} 40. h4 {[%emt 0:00:01]} f5 {[%emt 0:00:02]} 41. f4+ {[%emt 0:
00:02]} Kd4 {[%emt 0:00:01]} 42. Kh3 {[%emt 0:00:01]} h6 {[%emt 0:00:01]} 43.
g3 {[%emt 0:00:02]} Ke3 {[%emt 0:00:02]} 44. Bc4 {[%emt 0:00:01]} h5 {[%emt 0:
00:05]} 45. Bxa2 {[%emt 0:00:01]} 1-0

[Event "FIDE Women World Blitz 2021"]
[Site "Warsaw"]
[Date "2021.12.29"]
[Round "1.8"]
[White "Zairbek kyzy, Begimai"]
[Black "Nomin-Erdene, Davaademberel"]
[Result "1-0"]
[ECO "C13"]
[WhiteElo "1701"]
[BlackElo "2188"]
[Annotator "NA"]
[PlyCount "75"]
[EventDate "2021.12.29"]
[EventType "swiss"]
[EventCountry "POL"]
[Tiebreak "Cut1 Buchholz"]
[SourceTitle "playchess.com"]
[Source "ChessBase"]
[SourceQuality "1"]
[TimeControl "180+2"]

1. e4 {[%emt 0:00:02]} e6 {[%emt 0:00:00]} 2. d4 {[%emt 0:00:02]} d5 {[%emt 0:
00:01]} 3. Nc3 {[%emt 0:00:01]} Nf6 {[%emt 0:00:01]} 4. Bg5 {[%emt 0:00:04]}
dxe4 {[%emt 0:00:01]} 5. Nxe4 {[%emt 0:00:03]} Be7 {[%emt 0:00:00]} 6. Bxf6 {
[%emt 0:00:03]} gxf6 {[%emt 0:00:01]} 7. Nf3 {[%emt 0:00:02]} a6 {[%emt 0:00:
03]} 8. c3 {[%emt 0:00:02]} b6 {[%emt 0:00:05]} 9. Bd3 {[%emt 0:00:11]} Bb7 {
[%emt 0:00:01]} 10. Qe2 {[%emt 0:00:01]} f5 {[%emt 0:00:03]} 11. Ng3 {[%emt 0:
00:02]} Qd6 {[%emt 0:00:01]} 12. O-O-O {[%emt 0:00:26]} Nd7 13. Ne5 {[%emt 0:
00:10]} Nxe5 {[%emt 0:01:45]} 14. dxe5 {[%emt 0:00:00]} Qc5 {[%emt 0:00:02]}
15. Bc2 {[%emt 0:00:31]} Bd5 {[%emt 0:00:56]} 16. Kb1 {[%emt 0:00:02]} b5 {
[%emt 0:00:10]} 17. Nh5 {[%emt 0:00:44]} O-O-O {[%emt 0:00:02]} 18. Nf4 {
[%emt 0:00:06]} Bc6 {[%emt 0:00:07]} 19. Nd3 {[%emt 0:00:15]} Qc4 {[%emt 0:00:
05]} 20. f3 {[%emt 0:00:04]} Rd7 {[%emt 0:00:08]} 21. Bb3 {[%emt 0:00:01]} Qh4
{[%emt 0:00:00]} 22. g3 {[%emt 0:00:13]} Qh5 {[%emt 0:00:01]} 23. Rhf1 {
[%emt 0:00:10]} Rhd8 24. Nf4 {[%emt 0:00:01]} Rxd1+ 25. Bxd1 {[%emt 0:00:01]}
Qh6 {[%emt 0:00:04]} 26. a4 {[%emt 0:00:11]} Bg5 {[%emt 0:00:06]} 27. Nd3 {
[%emt 0:00:03]} Bb7 {[%emt 0:00:04]} 28. Nc5 {[%emt 0:00:01]} c6 {[%emt 0:00:
03]} 29. axb5 {[%emt 0:00:09]} axb5 {[%emt 0:00:00]} 30. Bb3 {[%emt 0:00:04]}
Rd2 {[%emt 0:00:01]} 31. Qe1 {[%emt 0:00:02]} Qxh2 {[%emt 0:00:02]} 32. Rh1 {
[%emt 0:00:13]} Rxb2+ {[%emt 0:00:01]} 33. Ka1 {[%emt 0:00:01]} Qd2 {[%emt 0:
00:03]} 34. Qxd2 {[%emt 0:00:02]} Rxd2 {[%emt 0:00:02]} 35. Rxh7 {[%emt 0:00:
01]} Rd8 {[%emt 0:00:08]} 36. Rxf7 {[%emt 0:00:01]} Ba8 {[%emt 0:00:01]} 37.
Bxe6+ {[%emt 0:00:02]} Kb8 {[%emt 0:00:01]} 38. Na6# {[%emt 0:00:01]} 1-0